bitfinex/quotes_ETHUSD_20251120
["timestamp","ask_amount","ask_price","bid_price","bid_amount"]
[1763661324415,0.1,2834.3,2834.0,0.90699264]
[1763661324720,0.1,2834.6,2834.1,0.405504]
[1763661324881,0.1,2834.6,2834.5,0.90699264]
[1763661325083,0.4678,2835.4,2834.6,0.405504]
[1763661325282,0.1,2834.8,2834.5,0.90699264]
[1763661325499,0.4678,2835.4,2834.4,8.42257333]
[1763661325702,0.2809,2834.5,2834.0,0.405504]
[1763661325900,0.2809,2834.5,2833.4,1.88528692]
[1763661325901,0.1,2833.5,2833.2,0.94204761]
[1763661326099,0.1809,2835.9,2833.0,8.82293863]
[1763661326100,0.1809,2834.6,2833.3,1.25685794]
[1763661326300,0.1,2834.2,2833.8,0.90699264]
[1763661326502,0.1,2834.4,2833.9,0.405504]
[1763661326689,0.1,2834.7,2834.4,0.405504]
[1763661327006,0.1,2834.4,2834.3,0.90699264]
[1763661327309,0.1,2834.0,2833.7,0.90699264]
[1763661327510,0.1,2834.4,2833.8,0.405504]
[1763661327736,0.55356874,2835.2,2834.3,1.31249664]
[1763661327944,0.55356874,2835.2,2834.7,7.51558069]
[1763661327945,0.1,2834.9,2834.7,7.51558069]
[1763661328226,0.1,2834.9,2834.8,0.90699264]
[1763661328430,0.1,2835.4,2834.9,0.405504]
[1763661328637,0.1,2835.4,2835.3,8.42257333]
[1763661329006,0.5643,2835.4,2835.3,0.90699264]
[1763661329319,0.1,2834.5,2834.0,0.405504]
[1763661329635,0.1,2834.4,2834.0,0.405504]
[1763661329806,0.1,2834.4,2834.3,0.90699264]
[1763661330008,0.74313976,2835.7,2833.9,0.94111765]
[1763661330009,0.1897,2834.6,2833.9,0.94111765]
[1763661330203,0.4643,2834.3,2833.3,8.45669834]
[1763661330403,0.1897,2834.6,2833.8,7.51558069]
[1763661330616,0.1897,2834.6,2833.9,0.90699264]
[1763661330617,0.1,2834.2,2833.9,0.90699264]
[1763661330844,0.1,2834.6,2834.0,0.405504]
[1763661331052,0.1,2834.4,2834.0,0.405504]
[1763661331546,0.1,2834.7,2834.4,0.90699264]
[1763661331922,0.1,2834.6,2834.4,0.90699264]
[1763661332118,0.1,2834.5,2834.4,0.90699264]
[1763661332319,0.4643,2835.3,2833.8,1.25685794]
[1763661332320,0.1,2834.3,2833.8,7.51558069]
[1763661332519,0.1,2834.1,2833.9,0.90699264]
[1763661333365,0.1,2834.3,2833.9,0.90699264]
[1763661333538,0.1,2834.6,2834.0,0.405504]
[1763661333732,0.6421,2835.0,2834.0,0.405504]
[1763661333733,0.1,2834.3,2834.0,0.405504]
[1763661333963,0.1,2834.8,2833.3,8.4559144]
[1763661334283,0.1,2833.9,2833.3,7.51558069]
[1763661334574,0.1,2833.9,2833.4,1.31249664]
[1763661335278,0.4584,2834.4,2833.4,1.31249664]
[1763661335478,0.1,2834.2,2833.4,1.31249664]
[1763661335686,0.4584,2834.4,2833.4,1.31249664]
[1763661335687,0.002,2834.4,2833.8,7.51558069]
[1763661335839,0.002,2834.4,2833.9,0.90699264]
[1763661336042,0.102,2834.4,2833.9,0.90699264]
[1763661336243,0.1,2834.1,2833.5,0.94033371]
[1763661336584,0.002,2834.4,2834.0,0.90699264]
[1763661337390,0.102,2834.4,2834.0,0.90699264]
[1763661337564,0.102,2834.4,2834.1,0.405504]
[1763661337565,0.002,2834.4,2834.1,0.405504]
[1763661338078,0.002,2834.4,2833.9,8.4559144]
[1763661338079,0.102,2834.4,2833.9,0.405504]
[1763661338585,0.002,2837.0,2834.5,1.31249664]
[1763661338746,0.4659,2836.8,2835.7,0.93904319]
[1763661338942,0.1,2836.1,2835.7,0.405504]
[1763661339370,0.1,2836.1,2835.6,0.90699264]
[1763661339691,0.002,2837.0,2836.1,1.31249664]
[1763661339980,0.002,2837.0,2836.1,1.34454719]
[1763661340181,0.1,2836.8,2836.3,1.31249664]
[1763661340553,0.1,2836.7,2836.3,1.31249664]
[1763661341065,0.1,2836.7,2836.3,0.90699264]
[1763661341270,0.1,2836.5,2836.3,0.90699264]
[1763661341467,0.002,2837.0,2836.9,0.454004]
[1763661341667,0.002,2837.0,2836.9,8.92507733]
[1763661341866,0.002,2837.0,2836.9,8.87657733]
[1763661342044,0.002,2837.0,2836.9,9.81363544]
[1763661342475,0.002,2837.0,2836.9,10.17591516]
[1763661342678,0.002,2837.0,2836.9,8.92507733]
[1763661342878,0.002,2837.0,2836.9,10.80133408]
[1763661343080,0.002,2837.3,2837.0,1.31249664]
[1763661343285,0.002,2837.3,2837.2,0.405504]
[1763661344261,0.002,2837.3,2837.2,1.65413021]
[1763661344467,0.1921,2839.8,2837.2,5.711316]
[1763661344669,0.5659,2839.5,2838.5,1.31249664]
[1763661344861,0.1,2838.9,2838.5,1.31249664]
[1763661345710,0.1,2838.9,2838.5,0.90699264]
[1763661345993,0.1,2838.6,2838.5,0.90699264]
[1763661346417,0.4659,2838.6,2838.2,0.90699264]
[1763661346692,0.4659,2838.6,2837.6,0.93566148]
[1763661346693,0.1,2838.1,2837.6,7.51558069]
[1763661346993,1.01873103,2838.6,2837.7,0.90699264]
[1763661347194,0.1,2838.4,2837.8,0.405504]
[1763661347356,0.1,2838.4,2837.6,7.51558069]
[1763661347357,0.4659,2838.5,2837.6,7.51558069]
[1763661347561,0.4659,2838.5,2837.7,0.90699264]
[1763661347784,0.4659,2838.5,2837.6,7.51558069]
[1763661347983,0.1,2838.0,2837.6,7.51558069]
[1763661348162,0.1,2838.0,2837.7,0.90699264]
[1763661348482,0.1,2838.8,2837.8,0.405504]
[1763661348658,0.1,2838.8,2838.3,0.90699264]
[1763661348857,0.1,2838.8,2838.4,0.405504]
[1763661349696,0.1,2838.5,2838.0,0.90699264]
[1763661349861,0.1,2838.2,2838.0,0.90699264]
[1763661350062,0.1,2838.2,2837.1,1.24754864]
[1763661350063,0.1,2837.8,2837.4,7.51558069]
[1763661350304,0.1,2837.5,2836.9,7.56408069]
[1763661350820,0.1921,2839.0,2837.5,0.90699264]
[1763661350821,0.1,2837.8,2837.5,0.90699264]
[1763661350980,0.1921,2838.0,2837.5,0.90699264]
[1763661351186,0.4659,2837.9,2836.9,7.56408069]
[1763661351489,0.1,2837.5,2836.9,7.56408069]
[1763661351692,0.1,2837.3,2837.0,0.90699264]
[1763661351919,0.1,2837.3,2837.1,0.405504]
[1763661352209,0.4659,2837.9,2837.1,0.405504]
[1763661352210,0.1,2837.6,2837.1,0.405504]
[1763661352925,0.4659,2838.5,2837.5,1.31249664]
[1763661353082,0.1,2837.9,2837.5,1.31249664]
[1763661353281,0.1,2838.2,2837.5,1.31249664]
[1763661353706,0.4659,2838.9,2838.0,0.90699264]
[1763661354087,0.1,2838.2,2838.0,0.90699264]
[1763661354283,0.1,2838.2,2837.9,7.51558069]
[1763661354284,0.002,2838.1,2837.5,0.405504]
[1763661354590,0.002,2838.1,2838.0,0.90699264]
[1763661355390,0.002,2838.1,2838.0,8.82807733]
[1763661355611,0.002,2838.1,2838.0,8.42257333]
[1763661356688,0.002,2838.1,2838.0,8.82807733]
[1763661357420,0.102,2838.1,2837.6,0.405504]
[1763661357628,0.102,2838.1,2837.5,7.51558069]
[1763661357629,0.002,2838.1,2837.5,7.51558069]
[1763661357852,0.1,2837.7,2837.2,0.90699264]
[1763661358059,0.1,2837.9,2837.1,7.51558069]
[1763661358225,0.1,2837.9,2837.7,0.405504]
[1763661358549,0.002,2838.1,2837.7,1.31249664]
[1763661359127,0.002,2838.1,2837.7,0.90699264]
[1763661359326,0.002,2838.1,2837.8,0.405504]
[1763661359748,0.002,2838.1,2837.7,0.90699264]
[1763661359913,0.002,2838.1,2837.8,0.90699264]
[1763661360256,0.1,2838.0,2837.8,0.90699264]
[1763661361165,0.1,2837.7,2836.9,0.0485]
[1763661361307,0.1,2837.7,2836.7,7.51558069]
[1763661361308,0.1,2837.3,2836.7,7.51558069]
[1763661361709,0.4659,2837.6,2836.8,0.90699264]
[1763661361914,0.002,2838.1,2837.2,7.51558069]
[1763661361915,0.1,2838.0,2837.2,7.51558069]
[1763661362115,0.102,2838.1,2837.8,0.90699264]
[1763661362414,0.002,2838.1,2837.8,0.90699264]
[1763661362721,0.4679,2838.1,2837.8,0.90699264]
[1763661362923,0.4679,2838.1,2836.9,1.24754864]
[1763661362924,0.1921,2837.9,2836.4,0.0485]
[1763661363121,0.1921,2837.9,2836.2,7.51558069]
[1763661363122,0.4659,2837.8,2836.2,7.51558069]
[1763661363324,0.4659,2837.8,2836.3,0.90699264]
[1763661363525,0.1,2836.4,2835.8,0.126]
[1763661363857,0.1,2836.3,2835.8,0.126]
[1763661364156,0.1,2837.3,2836.4,0.405504]
[1763661364456,0.1,2837.3,2837.2,0.90699264]
[1763661364642,0.1921,2837.9,2837.2,1.31249664]
[1763661364847,0.002,2838.1,2837.9,1.31249664]
[1763661365025,0.002,2838.1,2837.9,2.24745105]
[1763661365219,0.002,2838.1,2838.0,1.65305264]
[1763661365416,0.002,2838.1,2838.0,1.34103009]
[1763661365737,0.002,2838.1,2837.9,1.84251873]
[1763661365941,0.002,2838.1,2837.9,0.90699264]
[1763661366126,0.1,2837.9,2837.6,0.90699264]
[1763661366332,0.002,2838.1,2837.7,0.405504]
[1763661366659,0.1,2837.9,2837.6,0.90699264]
[1763661366865,0.1,2837.9,2837.5,0.93552609]
[1763661367015,0.1,2837.3,2837.1,7.51558069]
[1763661367351,0.1,2837.3,2837.2,0.90699264]
[1763661367551,0.4659,2837.8,2837.2,0.90699264]
[1763661367552,0.002,2838.1,2837.2,7.64158069]
[1763661367738,0.1,2837.9,2837.8,0.93851894]
[1763661367946,0.4659,2838.0,2837.2,0.93851894]
[1763661368255,0.4659,2838.0,2837.1,0.93851894]
[1763661368462,0.4659,2838.0,2837.0,0.93851894]
[1763661368621,0.4659,2838.0,2836.9,0.93851894]
[1763661368622,0.1,2837.1,2836.9,0.93851894]
[1763661368822,0.4659,2838.0,2836.9,0.93851894]
[1763661368823,0.1,2837.0,2836.9,0.93851894]
[1763661369019,0.4988,2837.9,2836.7,0.93851894]
[1763661369351,0.4988,2837.9,2836.4,7.51558069]
[1763661369352,0.1,2836.6,2836.4,0.94330154]
[1763661369555,0.1955,2836.8,2836.5,0.94336329]
[1763661369756,0.1955,2837.1,2836.6,1.25135859]
[1763661369943,0.1,2836.9,2836.8,0.94317684]
[1763661370132,0.1955,2837.1,2836.0,2.63011519]
[1763661370133,0.1,2836.7,2836.5,0.94317684]
[1763661370330,0.4988,2837.0,2836.3,0.94317684]
[1763661370565,0.1,2836.4,2836.2,0.94317684]
[1763661370766,0.1,2836.4,2836.3,0.94317684]
[1763661371324,0.4988,2836.9,2836.2,0.94317684]
[1763661371627,0.1,2836.2,2836.1,0.94317684]
[1763661371826,0.1,2836.2,2836.1,0.94417684]
[1763661372169,0.5988,2836.2,2836.1,0.001]
[1763661373184,0.4988,2836.9,2836.1,0.001]
[1763661373489,0.4988,2836.9,2836.2,0.405504]
[1763661373490,0.1,2836.5,2836.2,0.405504]
[1763661373951,0.1,2836.8,2836.4,1.34868084]
[1763661374160,0.1,2837.2,2836.8,0.90699264]
[1763661374387,0.4988,2837.3,2836.6,0.94317684]
[1763661374556,0.4988,2837.3,2836.4,1.37735859]
[1763661374557,0.4988,2837.2,2836.4,1.06917684]
[1763661374757,0.1,2837.0,2836.8,0.90699264]
[1763661375082,0.1,2837.3,2836.9,0.405504]
[1763661375645,0.5008,2838.1,2837.2,7.49274614]
[1763661375847,0.1955,2837.9,2837.3,0.90699264]
[1763661376083,0.1,2837.4,2837.3,1.31249664]
[1763661376243,0.2955,2837.9,2837.3,1.31249664]
[1763661376442,0.2955,2837.9,2837.3,0.90699264]
[1763661376443,0.1,2837.6,2837.3,0.90699264]
[1763661376683,0.1,2837.4,2837.3,0.90699264]
[1763661376884,0.4988,2837.8,2837.0,1.06917684]
[1763661377201,0.1,2837.5,2837.4,0.90699264]
[1763661377555,0.4988,2837.8,2837.4,0.90699264]
[1763661377556,0.1,2837.8,2837.4,0.90699264]
[1763661378283,0.1,2837.5,2837.2,1.84762205]
[1763661378468,0.4988,2837.7,2837.2,0.94062941]
[1763661378646,0.1,2837.2,2837.1,1.84762205]
[1763661379043,0.1,2837.4,2837.1,1.84762205]
[1763661379248,0.1,2837.4,2837.1,0.90699264]
[1763661379444,0.1955,2837.9,2836.9,0.94062941]
[1763661379445,0.4988,2837.3,2836.9,0.94062941]
[1763661379745,0.1,2837.2,2836.9,0.94062941]
[1763661380082,0.1,2837.1,2836.9,0.94062941]
[1763661380582,0.1,2837.0,2836.9,0.94062941]
[1763661380781,0.1,2836.9,2836.6,0.94140184]
[1763661381081,0.4988,2837.0,2836.5,7.12165134]
[1763661381243,0.1,2836.7,2836.5,7.12165134]
[1763661381448,0.4988,2837.0,2836.3,0.94140184]
[1763661381680,0.1,2836.5,2836.2,0.94140184]
[1763661381887,0.4988,2836.9,2836.3,0.94140184]
[1763661382072,0.1,2836.4,2836.3,0.94140184]
[1763661382449,0.1,2836.4,2836.1,0.94240184]
[1763661382450,0.5988,2836.4,2836.1,0.94240184]
[1763661382652,0.1,2836.5,2836.1,1.84939448]
[1763661382885,0.1,2836.5,2836.1,0.001]
[1763661383187,0.1,2836.2,2836.1,0.001]
[1763661383873,0.1,2836.9,2836.1,1.31349664]
[1763661384097,0.4988,2837.1,2836.1,1.31349664]
[1763661384098,0.1,2836.6,2836.1,1.31349664]
[1763661384276,0.1,2836.6,2836.1,2.25489848]
[1763661384663,0.1,2837.2,2836.7,0.405504]
[1763661384999,0.002,2838.1,2837.3,0.405504]
[1763661385293,0.002,2838.1,2838.0,7.08724214]
[1763661385451,0.002,2838.1,2838.0,0.90699264]
[1763661385651,0.002,2838.1,2837.8,0.94010971]
[1763661385652,0.1,2838.0,2837.6,0.94010971]
[1763661385868,0.1955,2837.9,2837.4,0.90699264]
[1763661386061,0.002,2838.1,2837.4,0.90699264]
[1763661386062,0.5988,2838.0,2837.6,0.94010971]
[1763661386266,0.1,2837.6,2837.3,0.94010971]
[1763661386479,0.1,2837.4,2837.1,0.94010971]
[1763661386757,0.1,2837.3,2837.1,0.94010971]
[1763661387065,0.1,2837.5,2837.2,0.94010971]
[1763661387418,0.55301447,2837.8,2837.5,0.90699264]
[1763661387557,0.002,2838.1,2837.7,1.25347961]
[1763661387759,0.002,2838.1,2838.0,7.08724214]
[1763661387962,0.6008,2838.1,2838.0,0.90699264]
[1763661388290,0.002,2838.1,2838.0,0.90699264]
[1763661388604,0.6008,2838.1,2838.0,0.90699264]
[1763661389397,0.002,2838.1,2838.0,0.90699264]
[1763661389902,0.002,2838.1,2838.0,7.08724214]
[1763661390199,0.002,2838.4,2838.1,1.31249664]
[1763661390365,0.002,2838.4,2838.3,0.0485]
[1763661390764,0.002,2838.4,2838.3,1.30040119]
[1763661391563,0.002,2838.4,2838.3,0.0485]
[1763661391766,0.002,2838.4,2838.3,1.70590519]
[1763661392006,0.1967,2839.3,2838.4,0.405504]
[1763661392163,0.55279559,2839.7,2838.9,1.31249664]
[1763661392361,0.1967,2840.2,2838.9,1.31249664]
[1763661392362,0.1,2839.6,2838.9,1.31249664]
[1763661392606,0.1,2839.7,2839.4,0.90699264]
[1763661392808,0.1,2839.9,2839.6,7.05541041]
[1763661392974,0.1967,2840.2,2839.6,7.05541041]
[1763661393167,0.1,2840.3,2840.0,7.05541041]
[1763661393567,0.1,2840.1,2840.0,7.05541041]
[1763661393872,0.2967,2840.1,2839.7,0.90699264]
[1763661394074,0.7539,2840.1,2839.7,0.90699264]
[1763661394273,0.1,2839.8,2839.7,0.90699264]
[1763661394468,0.4572,2840.0,2839.6,7.05541041]
[1763661394717,0.1967,2840.1,2839.7,0.90699264]
[1763661395016,0.1,2840.2,2839.7,1.31249664]
[1763661395387,0.1,2840.2,2840.1,6.16271739]
[1763661396001,0.55248213,2840.6,2840.1,7.06971003]
[1763661396198,0.1,2840.0,2839.5,0.405504]
[1763661396425,0.65245487,2840.5,2839.9,0.90699264]
[1763661396587,0.1,2840.5,2839.9,0.90699264]
[1763661397126,0.4572,2841.3,2840.4,0.90699264]
[1763661397422,0.1,2840.7,2840.4,0.90699264]
[1763661398222,0.1,2840.4,2839.8,0.405504]
[1763661398412,0.1,2840.0,2839.8,0.405504]
[1763661398614,0.1,2840.2,2839.8,0.405504]
[1763661398805,0.4572,2840.6,2839.7,0.126]
[1763661398806,0.1,2840.4,2840.1,7.06971003]
[1763661399001,0.1,2840.6,2840.1,7.06971003]
[1763661399206,0.05,2842.8,2840.2,1.31249664]
[1763661399405,0.1915,2842.9,2840.3,4.183]
[1763661399698,1.02872681,2843.5,2842.8,1.31249664]
[1763661399891,1.02872681,2843.5,2843.3,0.90699264]
[1763661400103,0.65212681,2843.5,2843.3,0.90699264]
[1763661400338,0.1,2843.5,2843.3,0.90699264]
[1763661400491,0.1,2843.5,2842.9,0.126]
[1763661400702,0.1,2843.4,2842.9,1.03299264]
[1763661401029,0.1915,2844.0,2843.0,0.405504]
[1763661401187,0.1,2843.4,2843.0,0.405504]
[1763661401595,0.4766,2843.3,2842.6,0.90699264]
[1763661401793,0.1,2842.7,2842.6,0.90699264]
[1763661402020,0.1,2842.7,2842.5,6.16271739]
[1763661402225,0.5766,2842.6,2842.5,6.16271739]
[1763661402738,0.4766,2842.6,2841.9,6.16271739]
[1763661402942,0.1,2842.0,2841.9,6.28871739]
[1763661403257,0.1,2842.0,2841.9,6.16271739]
[1763661403401,0.1,2842.0,2840.2,0.9378121]
[1763661403402,0.1,2841.6,2841.4,6.16271739]
[1763661403740,0.1,2841.3,2839.6,0.9378121]
[1763661403929,0.1,2841.1,2840.7,6.16271739]
[1763661404128,0.1,2841.2,2840.8,0.125]
[1763661404298,0.1,2841.4,2840.8,1.03199264]
[1763661404498,0.4766,2841.8,2839.3,0.9378121]
[1763661404499,0.1,2841.1,2839.3,0.9378121]
[1763661404706,0.1,2841.4,2840.0,6.16271739]
[1763661405010,0.1,2840.8,2840.6,6.16271739]
[1763661405412,0.4766,2841.8,2840.6,6.16271739]
[1763661405613,0.1,2841.5,2841.3,0.90699264]
[1763661405816,0.1,2841.5,2841.2,6.16271739]
[1763661406132,0.1915,2842.3,2840.8,0.90699264]
[1763661406133,0.1,2841.3,2840.8,0.90699264]
[1763661406511,0.1,2841.1,2840.8,0.90699264]
[1763661407133,0.4766,2841.0,2840.7,6.16271739]
[1763661407443,0.1,2840.7,2840.6,0.125]
[1763661407733,0.1,2840.7,2840.4,0.125]
[1763661407959,0.4766,2840.6,2840.4,0.125]
[1763661408115,0.4766,2840.6,2840.2,6.16271739]
[1763661408468,0.4766,2840.9,2840.3,0.90699264]
[1763661408748,0.1,2840.6,2840.3,0.90699264]
[1763661409365,0.002,2841.1,2840.4,0.405504]
[1763661409522,0.1,2841.0,2840.8,6.16271739]
[1763661409720,0.1,2841.0,2840.9,0.90699264]
[1763661410241,0.5766,2841.0,2840.4,0.405504]
[1763661410470,0.5766,2841.0,2838.5,2.50411519]
[1763661410471,0.1,2840.3,2840.2,0.125]
[1763661410646,0.1,2840.3,2839.7,6.16271739]
[1763661410856,0.1,2840.0,2839.8,0.125]
[1763661411181,0.002,2841.1,2838.8,6.16271739]
[1763661411182,0.1915,2839.9,2838.8,6.16271739]
[1763661411391,0.1,2839.6,2839.3,6.16271739]
[1763661411686,0.1,2839.6,2839.0,6.16271739]
[1763661411836,0.1915,2839.9,2839.1,0.90699264]
[1763661411837,0.1,2839.2,2839.1,0.90699264]
[1763661412032,0.5766,2839.2,2839.0,6.16271739]
[1763661412232,0.1,2839.2,2839.1,0.90699264]
[1763661412659,0.1,2839.2,2839.0,6.16271739]
[1763661413533,0.002,2841.1,2839.1,4.347037]
[1763661413740,0.002,2841.1,2840.5,6.16271739]
[1763661413960,0.4786,2841.1,2840.5,6.16271739]
[1763661414146,0.4786,2841.1,2840.6,0.405504]
[1763661414147,0.002,2841.1,2840.6,0.405504]
[1763661414355,0.002,2841.1,2841.0,6.16271739]
[1763661414674,0.002,2841.1,2841.0,5.66271739]
[1763661415290,0.002,2841.1,2840.6,0.531504]
[1763661415443,0.1,2840.9,2840.6,0.531504]
[1763661415648,0.002,2841.1,2840.6,1.43849664]
[1763661415985,0.002,2841.1,2841.0,7.06971003]
[1763661416142,0.002,2841.1,2841.0,7.47521403]
[1763661417556,0.2915,2841.9,2841.1,0.405504]
[1763661417758,0.1915,2841.9,2841.5,6.16271739]
[1763661418069,0.4766,2842.2,2841.5,6.16271739]
[1763661418248,0.1,2842.1,2841.5,6.16271739]
[1763661418864,0.1,2841.8,2841.0,0.90699264]
[1763661419059,0.1,2841.2,2841.1,0.90699264]
[1763661419285,0.2915,2841.2,2841.1,0.90699264]
[1763661419451,0.7681,2841.2,2841.0,6.16271739]
[1763661419648,0.7681,2841.2,2840.7,0.126]
[1763661419649,0.6681,2841.2,2840.7,0.126]
[1763661419862,0.1,2841.1,2840.7,0.126]
[1763661420183,0.5766,2841.5,2840.8,0.405504]
[1763661420383,0.1915,2842.0,2841.1,1.31249664]
[1763661420584,0.1915,2842.0,2841.5,6.16271739]
[1763661420791,0.1,2841.8,2841.5,6.16271739]
[1763661421084,0.4766,2841.9,2841.0,6.16271739]
[1763661421283,0.1915,2842.0,2841.0,6.16271739]
[1763661421284,0.1,2841.3,2841.0,6.16271739]
[1763661421587,0.4766,2841.8,2841.0,6.16271739]
[1763661421588,0.1,2841.7,2841.0,6.16271739]
[1763661421889,0.1915,2841.1,2840.4,6.16271739]
[1763661422057,0.4766,2841.7,2840.9,6.16271739]
[1763661422258,0.1915,2842.0,2841.4,6.16271739]
[1763661422259,0.2915,2842.0,2841.4,6.16271739]
[1763661422472,0.4766,2841.9,2841.4,6.16271739]
[1763661422887,0.1,2841.6,2841.4,6.16271739]
[1763661423045,0.1,2841.2,2840.9,6.16271739]
[1763661423246,0.1915,2842.0,2841.0,1.31249664]
[1763661423480,0.1915,2842.3,2841.8,6.16271739]
[1763661423687,0.1915,2842.6,2841.9,1.03299264]
[1763661423969,0.1915,2842.6,2842.4,6.16271739]
[1763661424365,0.5766,2842.5,2842.4,6.16271739]
[1763661424658,0.5766,2842.5,2841.4,7.08171789]
[1763661424659,0.1,2842.0,2841.4,7.08171789]
[1763661424887,0.2915,2841.8,2841.4,6.16271739]
[1763661425250,0.4766,2841.8,2841.4,6.16271739]
[1763661425453,0.1915,2842.6,2841.4,6.16271739]
[1763661425454,0.1,2841.7,2841.4,6.16271739]
[1763661425678,0.1,2842.2,2841.4,6.16271739]
[1763661425991,0.1,2841.9,2841.4,6.16271739]
[1763661426151,0.4766,2842.5,2841.5,1.31249664]
[1763661426356,0.4766,2842.4,2841.6,0.125]
[1763661426779,0.1,2841.9,2841.6,0.125]
[1763661426987,0.4766,2842.4,2840.8,7.08171789]
[1763661427152,0.5766,2842.3,2841.3,6.16271739]
[1763661427352,0.1,2841.7,2841.3,6.16271739]
[1763661427551,0.4766,2842.3,2840.9,0.90699264]
[1763661427552,0.1,2841.3,2840.9,0.90699264]
[1763661427780,0.4766,2842.2,2840.9,0.90699264]
[1763661427990,0.1,2842.3,2841.6,6.16271739]
[1763661428177,0.1,2842.3,2841.0,0.9190005]
[1763661428178,0.1,2842.5,2842.1,6.16271739]
[1763661428496,0.1915,2843.4,2842.3,0.405504]
[1763661428648,0.2915,2843.4,2842.9,6.16271739]
[1763661428853,0.1,2843.2,2842.9,6.16271739]
[1763661429312,0.002,2842.7,2842.6,0.90699264]
[1763661429503,0.1,2842.6,2842.2,0.405504]
[1763661429705,0.1915,2844.0,2842.6,1.31249664]
[1763661429874,0.1,2843.8,2842.6,0.92744657]
[1763661430075,0.6602,2844.0,2842.9,6.16271739]
[1763661430076,0.1,2843.6,2842.9,6.16271739]
[1763661430299,0.1,2843.6,2843.0,0.405504]
[1763661430482,0.1,2843.6,2842.9,6.16271739]
[1763661430680,0.1,2843.6,2842.7,0.125]
[1763661430681,0.1971,2843.0,2842.7,0.125]
[1763661430879,0.1,2843.3,2842.7,0.125]
[1763661431080,0.4687,2843.5,2842.9,0.90699264]
[1763661431386,0.1,2842.9,2842.5,0.125]
[1763661431580,0.1,2842.8,2842.5,0.125]
[1763661431823,0.1915,2844.0,2842.7,7.06971003]
[1763661431999,0.1,2843.8,2843.2,6.16271739]
[1763661432322,0.1,2844.5,2843.7,6.16271739]
[1763661432473,0.1915,2844.6,2843.7,6.28771739]
[1763661432474,0.4687,2844.4,2843.7,6.28771739]
[1763661432807,0.1,2844.1,2843.5,7.44689508]
[1763661433046,0.4687,2844.4,2843.6,0.90699264]
[1763661433207,0.1915,2844.6,2844.0,7.44689508]
[1763661433512,0.1915,2844.6,2844.0,7.57189508]
[1763661434216,0.1,2844.2,2843.8,0.125]
[1763661434423,0.1,2844.2,2843.6,0.90699264]
[1763661434640,0.5687,2844.2,2843.5,7.44689508]
[1763661434915,0.4687,2844.2,2843.0,7.44689508]
[1763661435277,0.1,2843.8,2843.0,7.44689508]
[1763661435477,0.1,2843.4,2843.0,0.125]
[1763661435803,0.1915,2844.6,2843.0,0.125]
[1763661435804,0.1,2843.5,2843.0,0.125]
[1763661436002,0.1,2843.3,2843.0,0.125]
[1763661436177,0.1,2843.3,2842.5,7.44689508]
[1763661436374,0.1971,2843.4,2841.7,1.88021942]
[1763661436375,0.1,2842.7,2842.0,7.44689508]
[1763661436621,0.4687,2843.2,2842.1,0.03518525]
[1763661436837,0.4687,2843.2,2842.0,7.44689508]
[1763661437041,0.4687,2843.2,2841.4,1.88021942]
[1763661437042,0.1,2842.7,2841.9,0.125]
[1763661437195,0.1971,2842.0,2841.1,0.92744657]
[1763661437395,0.1971,2842.0,2841.0,8.37434165]
[1763661437625,0.1971,2842.0,2841.1,0.03519763]
[1763661437831,0.4687,2842.4,2841.5,0.90699264]
[1763661437832,0.1971,2842.3,2841.5,0.90699264]
[1763661438148,0.1971,2843.4,2841.5,0.90699264]
[1763661438149,0.1971,2842.8,2842.0,0.90699264]
[1763661438348,0.1,2843.3,2842.7,0.90699264]
[1763661438633,0.1,2843.0,2842.8,0.125]
[1763661438940,0.1971,2843.4,2842.9,0.03517534]
[1763661439533,0.1971,2843.4,2842.7,0.90699264]
[1763661439534,0.1,2843.2,2842.7,0.90699264]
[1763661439741,0.1,2843.2,2842.4,0.90699264]
[1763661439901,0.1,2842.9,2842.5,0.125]
[1763661440244,0.1,2842.9,2842.6,0.125]
[1763661440895,0.5687,2842.9,2842.6,0.125]
[1763661441534,0.1,2842.9,2842.6,0.125]
[1763661441741,0.5687,2842.9,2842.6,0.125]
[1763661441954,0.1,2843.6,2842.8,7.44689508]
[1763661442636,0.1,2843.6,2843.3,7.44689508]
[1763661442837,0.1915,2844.6,2843.3,7.44689508]
[1763661442838,0.03568325,2844.6,2843.3,7.57189508]
[1763661443201,0.1,2843.9,2843.3,7.57189508]
[1763661443399,0.1,2843.6,2843.3,7.57189508]
[1763661443708,0.1971,2843.4,2843.3,0.125]
[1763661443909,0.1,2843.0,2842.7,0.125]
[1763661444121,0.1,2843.0,2842.6,0.125]
[1763661444703,0.1,2843.0,2841.9,0.92744657]
[1763661444704,0.4687,2842.9,2841.9,0.92744657]
[1763661444940,0.4687,2842.9,2841.8,0.125]
[1763661444941,0.1,2842.4,2841.8,0.125]
[1763661445138,0.1,2842.4,2841.8,1.03199264]
[1763661445443,0.2971,2842.3,2841.8,0.125]
[1763661445739,0.1971,2842.3,2841.3,0.92744657]
[1763661445910,0.4687,2842.2,2840.8,0.92744657]
[1763661446103,0.4687,2842.2,2840.8,0.125]
[1763661446104,0.1,2841.4,2840.8,0.125]
[1763661446305,0.1,2841.4,2840.8,1.03199264]
[1763661446505,0.1,2841.4,2840.8,0.125]
[1763661446835,0.08240057,2841.4,2840.8,0.125]
[1763661447138,0.09240057,2841.4,2840.8,0.125]
[1763661448149,0.1971,2842.3,2841.2,7.44689508]
[1763661448348,0.1971,2842.3,2841.3,0.90699264]